Cogmind - Beta 17 @@@ ROGUE MODE // 2026.06.29 @ 22:55:59 Player: Slow Result: Destroyed by Y-45 Defender with Heavy Assault Rifle Performance ------------- Evolutions (2) 1000 Regions Visited (5) 1000 Robots Destroyed (12) 60 Value Destroyed (268) 268 Prototype IDs (23) 460 Alien Tech Used (0) 0 Bonus (300) 300 TOTAL SCORE: 3088 Bonus ------- Aligned with FarCom 300 Cogmind --------- Core Integrity 0/550 Matter 121/300 Energy 77/100 System Corruption 0% Temperature Cool (9) Movement Walking (120) Location -8/Materials Parts ------- > --- POWER (1) -------- (None) > --- PROPULSION (4) --- Aluminum Leg Aluminum Leg > --- UTILITY (4) ------ (None) > --- WEAPON (2) ------- Scythe > --- INVENTORY (5) ---- Light Treads Large Storage Unit Superbattery (1500) Guided Plasma Cannon Assault Rifle Peak State ------------ > --- POWER ------------ Light Ion Engine > --- PROPULSION ------- Light Treads Aluminum Leg Aluminum Leg Carbon-fiber Leg > --- UTILITY ---------- Medium Storage Unit Terrain Scanner Seismic Detector Supersonic Drone Bay > --- WEAPON ----------- Guided Plasma Cannon Assault Rifle > --- INVENTORY -------- Ion Engine Light Treads Large Storage Unit High-capacity Battery Superbattery Structural Scanner Assault Rifle Assault Rifle Gauss Rifle [Rating: 29] Favorites ----------- Power Light Ion Engine Engine Light Ion Engine Propulsion Aluminum Leg Treads Light Treads Leg Aluminum Leg Utility Seismic Detector Device Seismic Detector Storage Medium Storage Unit Protection Improved Utility Shielding Weapon Assault Rifle Energy Gun Particle Gun Energy Cannon Guided Plasma Cannon Ballistic Gun Assault Rifle Ballistic Cannon Flak Cannon Slashing Weapon Scythe Build | -11 -10 -10 -10 -9 -8 ------- Run | Yrd Mat Min Exi Min Mat Slots Evolved 4 | . . . . . 4 Power . | . . . . . . Propulsion 2 | . . . . . 2 Utility 2 | . . . . . 2 Weapon . | . . . . . . Parts Attached 24 | 5 2 . 2 1 14 Power 1 | 1 . . . . . Engine 1 | 1 . . . . . Core . | . . . . . . Reactor . | . . . . . . Propulsion 7 | . 2 . . . 5 Treads 2 | . . . . . 2 Leg 5 | . 2 . . . 3 Wheel . | . . . . . . Hover . | . . . . . . Flight . | . . . . . . Utility 8 | 2 . . 1 1 4 Device 4 | 1 . . . 1 2 Storage 3 | 1 . . 1 . 1 Processor . | . . . . . . Hackware . | . . . . . . Protection 1 | . . . . . 1 Artifact . | . . . . . . Weapon 8 | 2 . . 1 . 5 Energy Gun 1 | . . . . . 1 Energy Cannon 1 | . . . . . 1 Ballistic Gun 4 | 2 . . 1 . 1 Ballistic Cannon 1 | . . . . . 1 Launcher . | . . . . . . Special Weapon . | . . . . . . Impact Weapon . | . . . . . . Slashing Weapon 1 | . . . . . 1 Piercing Weapon . | . . . . . . Special Melee Weapon . | . . . . . . Unidentified Prototypes . | . . . . . . Parts Lost 10 | . . . . . 10 Power 1 | . . . . . 1 Propulsion 4 | . . . . . 4 Utility 3 | . . . . . 3 Weapon 2 | . . . . . 2 Highest Loss Streak 7 | . . . . . 7 To Critical Strikes . | . . . . . . Average Backups 8 | 4 5 5 8 10 10 Power . | . 1 1 1 1 . Propulsion 1 | 3 2 2 2 2 . Utility 3 | . . . 3 5 5 Weapon 2 | . 1 2 2 2 3 Tool/Special . | . . . . . . Unused Backups 9 | . . . . . 9 Power 1 | . . . . . 1 Propulsion . | . . . . . . Utility 5 | . . . . . 5 Weapon 2 | . . . . . 2 Tool/Special 1 | . . . . . 1 Average Slot Usage (%) 93 | . 87 100 100 100 87 Engine 10 | . 14 14 14 14 7 Treads 3 | . . . . . 6 Leg 25 | . 16 28 28 28 23 Device 16 | . 14 14 14 14 18 Storage 11 | . 14 14 14 14 8 Protection 2 | . . . . . 5 Energy Gun 2 | . . . . . 5 Ballistic Gun 17 | . 28 28 28 28 7 Ballistic Cannon 1 | . . . . . 2 Peak Build Rating 29 | 5 7 7 10 10 29 Average Rating 14 | 3 6 7 7 10 23 On Entrance 6 | . 5 7 7 10 10 Avg Prop Armor Cover (%) 9 | . . . . . 9 Naked Turns 33 | . . . . . 33 Heaviest Build 36 | 12 12 12 18 18 36 Greatest Support 35 | 3 20 20 20 20 35 Greatest Overweight (x) 3 | 3 3 . . . 3 Average Overweight (x) . | 2 . . . . . Largest Inventory Capacity 15 | 8 8 8 10 10 15 Average Capacity 10 | 7 8 8 9 10 12 Most Carried 14 | 6 6 6 10 10 14 Average Carried 9 | 4 5 5 8 10 10 Final Capacity 10 | 8 8 8 10 10 5 Final Carried 10 | 6 5 6 10 10 5 Class Distribution -------------------- 85% | Mutant 14% | Skirmisher Dominant Class ---------------- Mutant | -10/Materials Mutant | -10/Mines Mutant | -10/Exiles Mutant | -9/Mines Mutant | -8/Materials Resources | -11 -10 -10 -10 -9 -8 ----------- Run | Yrd Mat Min Exi Min Mat Matter Collected 508 | 286 . 32 . 70 120 Remotely . | . . . . . . Salvage Created 361 | 123 . 4 . 38 196 Parts 22 | 8 . 2 . 3 9 Haulers Intercepted . | . . . . . . Recyclers Shooed . | . . . . . . Parts Field Recycled . | . . . . . . Retrieved Matter . | . . . . . . Parts Self-Destructed . | . . . . . . Prevented . | . . . . . . Parts Restored . | . . . . . . Kills | -11 -10 -10 -10 -9 -8 ------- Run | Yrd Mat Min Exi Min Mat Combat Hostiles Destroyed 8 | . . 1 . 1 6 Melee 1 | . . . . . 1 Guns 4 | . . 1 . 1 2 Cannons 3 | . . . . . 3 Classes Destroyed 6 | 2 . 1 . 1 2 Tunneler 2 | 2 . . . . . Recycler 1 | 1 . . . . . Watcher 1 | . . . . . 1 Swarmer 4 | . . 1 . . 3 Grunt 3 | . . . . 1 2 Hunter 1 | . . . . . 1 Best Kill Streak 3 | 3 . 1 . 1 2 Combat Bots Only 2 | . . 1 . 1 2 Max Kills in Single Turn 1 | 1 . 1 . 1 1 Gunslinging . | . . . . . . Exploded . | . . . . . . Melee 1 | . . . . . 1 Uniques/NPCs Destroyed . | . . . . . . Combat | -11 -10 -10 -10 -9 -8 -------- Run | Yrd Mat Min Exi Min Mat Hostile Shots Fired 192 | . 2 6 . 6 178 Missed 54 | . . 2 . 2 50 Hits 138 | . 2 4 . 4 128 Projectile 138 | . 2 4 . 4 128 AOE 1 | . . 1 . . . Critical Strikes 5 | . . . . . 5 Damage Taken 1928 | . 23 81 . 44 1780 Core 601 | . . 48 . . 553 Absorbed by Shields . | . . . . . . Redirected to Shielding 105 | . . . . . 105 Regen/Repaired (Parts) 60 | . . . . . 60 Core Remaining (%) 90 | 100 . . . 80 . Volleys Fired 33 | 9 . 3 . 5 16 Largest 2 | 2 . 2 . 2 2 Hottest 120 | 40 . 40 . 40 120 Shots Fired 63 | 18 . 6 . 10 29 Gun 56 | 18 . 6 . 10 22 Cannon 7 | . . . . . 7 Launcher . | . . . . . . Special . | . . . . . . Kinetic 56 | 18 . 6 . 10 22 Thermal 7 | . . . . . 7 Explosive . | . . . . . . Electromagnetic . | . . . . . . Robot Hit Streak 7 | 4 . 2 . 3 7 Robot Miss Streak 5 | 2 . 1 . 2 5 Penetration Max . | . . . . . . Secondary Targets 1 | . . 1 . . . Max Gunslinging Chain 1 | . . 1 . . . Shots Hit Robots 40 | 10 . 3 . 6 21 Core Hits 19 | 5 . 2 . 2 10 Critical Kills . | . . . . . . Critical Parts Destroyed 1 | . . . . . 1 Critical Strikes 2 | . . . . . 2 Destroy 1 | . . . . . 1 Sever 1 | . . . . . 1 Melee Attacks 4 | . . . . . 4 Impact . | . . . . . . Slashing 4 | . . . . . 4 Piercing . | . . . . . . Sneak Attacks . | . . . . . . Combat Hostiles . | . . . . . . Follow-up Attacks . | . . . . . . Damage Inflicted 656 | 124 . 34 . 102 396 Guns 420 | 124 . 34 . 102 160 Cannons 134 | . . . . . 134 Explosions . | . . . . . . Melee 95 | . . . . . 95 Ramming 7 | . . . . . 7 Kinetic 419 | 124 . 34 . 102 159 Thermal 135 | . . . . . 135 Explosive . | . . . . . . Electromagnetic . | . . . . . . Impact . | . . . . . . Slashing 95 | . . . . . 95 Piercing . | . . . . . . Highest Corruption . | . . . . . . Average Corruption . | . . . . . . Corruption Purged . | . . . . . . Corruption Blocked . | . . . . . . Overload Shots . | . . . . . . Overflow Damage . | . . . . . . Projectiles . | . . . . . . Explosions . | . . . . . . Melee . | . . . . . . Knockbacks 3 | . . . . . 3 Impact . | . . . . . . Kinetic 2 | . . . . . 2 Secondary 1 | . . . . . 1 Self-Inflicted Damage . | . . . . . . Shots . | . . . . . . Rammed . | . . . . . . Targets Rammed 3 | . . . . . 3 Kicked 3 | . . . . . 3 Crushed . | . . . . . . Highest Temperature 136 | . . 12 . . 136 Average Temperature 38 | . . 12 . . 39 Received Heat Transfer 828 | . 12 18 . 24 774 Siege Activations . | . . . . . . Martial Activations . | . . . . . . Shielding Activations . | . . . . . . Robots Disrupted . | . . . . . . Combat Hostiles . | . . . . . . Robots Corrupted . | . . . . . . Combat Hostiles . | . . . . . . Parts Fried . | . . . . . . Impact Corruptions . | . . . . . . Robots Melted . | . . . . . . Combat Hostiles . | . . . . . . Parts Melted 1 | . . . . . 1 Heat Transferred 314 | . . . . . 314 Parts Sabotaged . | . . . . . . Parts Stolen . | . . . . . . Parts Stripped . | . . . . . . Power Chain Reactions . | . . . . . . Alert | -11 -10 -10 -10 -9 -8 ------- Run | Yrd Mat Min Exi Min Mat Maximum Alert Level 1 | . . . . . 1 Low Security (%) 90 | 100 100 100 . 100 85 Level 1 9 | . . . . . 14 Level 2 . | . . . . . . Level 3 . | . . . . . . Level 4 . | . . . . . . Level 5 . | . . . . . . High Security . | . . . . . . Max Security . | . . . . . . Peak Influence 233 | 10 . 20 . 20 233 Initial . | . . . . . . Average 45 | 1 . 3 . 3 66 Influence Increases 535 | 15 . 20 . 20 480 Destroy 0b10 Robot/C 160 | . . 20 . 20 120 Destroy 0b10 Robot/NC 20 | 15 . . . . 5 Destroy Leader 22 | . . . . . 22 Successful Hack 2 | . . . . . 2 Destroy Structure 1 | . . . . . 1 Partial Spotted 15 | . . . . . 15 Lose Combat Pursuer 315 | . . . . . 315 Influence Decreases 363 | 15 . 20 . 20 308 Time Decay 263 | 15 . 20 . 20 208 Lost Part 100 | . . . . . 100 Squads Dispatched 9 | . 5 . . . 4 Investigation 3 | . 2 . . . 1 Extermination . | . . . . . . Reinforcement 6 | . 3 . . . 3 Assault . | . . . . . . Garrison . | . . . . . . Intercept . | . . . . . . Searches Triggered . | . . . . . . Construction Impeded . | . . . . . . Haulers Reinforced . | . . . . . . Active Scanning Responses . | . . . . . . Cargo Convoy Interrupts . | . . . . . . Stealth | -11 -10 -10 -10 -9 -8 --------- Run | Yrd Mat Min Exi Min Mat Distress Signals 3 | . 2 . . . 1 Communications Jammed . | . . . . . . Distress Signals . | . . . . . . Times Spotted 51 | . 5 7 . 3 36 Peak Tracking Total 13 | . 5 3 . 3 13 Tactical Retreats 6 | . . . . . 6 Traps | -11 -10 -10 -10 -9 -8 ------- Run | Yrd Mat Min Exi Min Mat Traps Triggered 4 | . 1 . . . 3 Indirectly . | . . . . . . Trap Hack Attempts . | . . . . . . Triggered . | . . . . . . Disarmed . | . . . . . . Reprogrammed . | . . . . . . Reused . | . . . . . . Traps Extracted . | . . . . . . Installed . | . . . . . . Triggered . | . . . . . . Machines | -11 -10 -10 -10 -9 -8 ---------- Run | Yrd Mat Min Exi Min Mat Machines Disabled . | . . . . . . Max in Single Turn . | . . . . . . Machines Repaired . | . . . . . . Machines Dismantled . | . . . . . . Machines Sabotaged . | . . . . . . Overloaded Fab Kills . | . . . . . . Hacking | -11 -10 -10 -10 -9 -8 --------- Run | Yrd Mat Min Exi Min Mat Machines Accessed 9 | . 1 . 5 . 3 Terminals 2 | . 1 . . . 1 Fabricators . | . . . . . . Repair Stations 1 | . . . . . 1 Recycling Units . | . . . . . . Scanalyzers 1 | . . . . . 1 Garrison Access . | . . . . . . Total Hacks 29 | . 5 . 20 . 4 Successful 26 | . 4 . 20 . 2 Failed 2 | . . . . . 2 Catastrophic . | . . . . . . Database Lockouts 1 | . 1 . . . . Manual 5 | . . . 3 . 2 Terminals 6 | . 5 . . . 1 Fabricators . | . . . . . . Repair Stations 2 | . . . . . 2 Recycling Units . | . . . . . . Scanalyzers 1 | . . . . . 1 Garrison Access . | . . . . . . Terminal Hacks 24 | . 4 . 20 . . Record 23 | . 4 . 19 . . Proto ID Catalog 1 | . . . 1 . . Fabricator Hacks . | . . . . . . Repair Station Hacks 2 | . . . . . 2 Scan Component 1 | . . . . . 1 Repair 1 | . . . . . 1 Recycling Unit Hacks . | . . . . . . Scanalyzer . | . . . . . . Garrison Access Hacks . | . . . . . . Unauthorized Hacks . | . . . . . . Terminals . | . . . . . . Fabricators . | . . . . . . Repair Stations . | . . . . . . Recycling Units . | . . . . . . Scanalyzers . | . . . . . . Garrison Access . | . . . . . . Data Cores Recovered . | . . . . . . Used . | . . . . . . Hacking Detections 4 | . 1 . . . 3 Full Trace Events . | . . . . . . Feedback Events . | . . . . . . Feedback Blocked . | . . . . . . Robot Schematics Acquired . | . . . . . . Robots Built . | . . . . . . Authchips . | . . . . . . Time . | . . . . . . Total Robot Build Rating . | . . . . . . Part Schematics Acquired . | . . . . . . Parts Built . | . . . . . . Authchips . | . . . . . . Time . | . . . . . . Total Part Build Rating . | . . . . . . Part Studies Acquired . | . . . . . . Parts Repaired 1 | . . . . . 1 Time 26 | . . . . . 26 Parts Recycled . | . . . . . . Recycled Matter . | . . . . . . Retrieved Matter . | . . . . . . Retrieved Components . | . . . . . . Parts Scanalyzed . | . . . . . . Part Schematics Acquired . | . . . . . . Parts Damaged . | . . . . . . Bothacking | -11 -10 -10 -10 -9 -8 ------------ Run | Yrd Mat Min Exi Min Mat Used RIF Installer . | . . . . . . Robots Hacked . | . . . . . . Non-combat . | . . . . . . Combat . | . . . . . . Robot Hacks Applied . | . . . . . . Relay Couplers Released . | . . . . . . Fabnet Peak Effective % . | . . . . . . Robots Rewired . | . . . . . . Allies Hacked . | . . . . . . Hacks Repelled . | . . . . . . Allies | -11 -10 -10 -10 -9 -8 -------- Run | Yrd Mat Min Exi Min Mat Total Allies . | . . . . . . Largest Group . | . . . . . . Highest-Rated Group . | . . . . . . Highest-Rated Ally . | . . . . . . Total Orders 1 | . . . . . 1 RETURN 1 | . . . . . 1 Ally Attacks . | . . . . . . Total Damage . | . . . . . . Kills . | . . . . . . Allies Corrupted . | . . . . . . Allies Melted . | . . . . . . Intel | -11 -10 -10 -10 -9 -8 ------- Run | Yrd Mat Min Exi Min Mat Active Infowar (turns) 2324 | 20 130 150 755 169 1100 Terrain 345 | . . . . 1 344 Structural 751 | . . . . . 751 Seismic 1670 | 20 130 150 755 168 447 Robot Analysis Total . | . . . . . . Derelict Logs Recovered . | . . . . . . Drone Launches 1 | . . . . . 1 Drone Recoveries 1 | . . . . . 1 Exploration | -11 -10 -10 -10 -9 -8 ------------- Run | Yrd Mat Min Exi Min Mat Turns Passed 2475 | 115 130 150 755 169 1156 Spaces Moved 1676 | 51 88 104 620 124 689 Core 146 | 51 24 . . . 71 Treads 69 | . . . . . 69 Legs 1461 | . 64 104 620 124 549 Wheels . | . . . . . . Hover . | . . . . . . Flight . | . . . . . . Fastest Speed 50 | 50 120 120 120 120 50 Average Speed 126 | 151 141 120 120 120 130 Slowest Speed 240 | 200 200 120 120 120 240 Overloaded Moves . | . . . . . . Propulsion Burnouts . | . . . . . . Robots Hopped . | . . . . . . Potential Cave-ins . | . . . . . . Cave-ins Triggered . | . . . . . . Exploration Rate (%) 44 | 4 25 48 94 47 48 Regions Visited 5 Branch Regions 3 Pre-discovered Areas 1 | . . . 1 . . Known Exits Taken . | . . . . . . Unknown Exits Taken 5 | 1 1 1 1 1 . Scrap Searched 1 | . . 1 . . . Spaces Dug . | . . . . . . Terrain Destroyed . | . . . . . . Melee . | . . . . . . Projectile . | . . . . . . AOE . | . . . . . . Terrain Rammed . | . . . . . . Walls Destroyed . | . . . . . . Machines Disabled . | . . . . . . Actions | -11 -10 -10 -10 -9 -8 --------- Run | Yrd Mat Min Exi Min Mat Total 1950 | 70 93 124 631 133 899 Wait 170 | . 3 17 3 1 146 Move 1671 | 50 87 103 619 123 689 Hop . | . . . . . . Pick Up 23 | 6 1 1 5 1 9 Fast Attach 15 | 5 . . . . 10 Attach 7 | . 2 . 1 . 4 Detach . | . . . . . . Swap 17 | . . . 1 2 14 Drop 7 | . . . 2 1 4 Fire 33 | 9 . 3 . 5 16 Melee 4 | . . . . . 4 Ram . | . . . . . . Kick 3 | . . . . . 3 Crush . | . . . . . . Escape Stasis . | . . . . . . Rewire . | . . . . . . Trap . | . . . . . . Miscellaneous . | . . . . . . Route ------- -11/Scrapyard -10/Materials -10/Mines (discovered 3 exits: [*Mat x2] / *Exi) -10/Exiles (discovered 2 exits: [*Min x2]) -9/Mines -8/Materials History --------- Turn | Location | Event 10 | -11/Scrapyard | Discovered new exit (range 15) 116 | -11/Scrapyard | Entered Materials 178 | -10/Materials | Central database locked down 233 | -10/Materials | Discovered new exit (range 6) 235 | -10/Materials | Met 8R-AWN 246 | -10/Materials | Entered Mines 249 | -10/Mines | Discovered new exit (range 13) 249 | -10/Mines | Discovered new exit (range 7) 249 | -10/Mines | Followed 8R-AWN into the Mines 300 | -10/Mines | Build established: Mutant 392 | -10/Mines | Discovered new exit (range 5) 396 | -10/Mines | Entered Exiles 417 | -10/Exiles | Discovered new exit (range 15) 437 | -10/Exiles | Welcomed by 8R-AWN 459 | -10/Exiles | Met EX-HEX 527 | -10/Exiles | Met EX-DEC 564 | -10/Exiles | Visited The Gauntlet 715 | -10/Exiles | Learned location of Zion (-7) 796 | -10/Exiles | Discovered new exit (range 11) 903 | -10/Exiles | Met EX-BIN 926 | -10/Exiles | Aligned with FarCom system 927 | -10/Exiles | Given EX-Vault access code 958 | -10/Exiles | Opened EX-Vault 1023 | -10/Exiles | Found Gui. Plasma Cannon 1026 | -10/Exiles | Found Supersonic Drone Bay 1033 | -10/Exiles | Found Superbattery 1061 | -10/Exiles | Warned to stay clear of 0b10 Research branches 1151 | -10/Exiles | Stole three prototypes: Superbattery, Supersonic Drone Bay, Gui. Plasma Cannon 1151 | -10/Exiles | Entered Mines 1213 | -9/Mines | Met a Derelict bent on vengeance 1229 | -9/Mines | Assembled infested the area 1234 | -9/Mines | Assisted by a Guerilla fighting off Assembled 1246 | -9/Mines | Found a hidden stash of uninstalled traps 1311 | -9/Mines | Discovered new exit (range 7) 1320 | -9/Mines | Entered Materials 1320 | -8/Materials | Evolved 4 slots: Propulsion x2, Utility x2 1628 | -8/Materials | Build established: Skirmisher 1833 | -8/Materials | Repaired Aluminum Leg 1968 | -8/Materials | Build established: Mutant 2426 | -8/Materials | Core integrity fell below 50% 2456 | -8/Materials | Lost 7 parts (2n3u2w) 2463 | -8/Materials | Core integrity fell below 20% 2476 | -8/Materials | Destroyed by Y-45 Defender with Heavy Assault Rifle Last Messages --------------- dispatching Specialist reinforcements to area. 02390_ Penetrated by Slug. 02391_ Particle Gun destroyed. 02411_ Flak Cannon destroyed. 02412_ Carbon-fiber Leg destroyed. 02415_ Kicked Y-45 Defender. 02417_ Imp. Utility Shielding destroyed. 02418_ Kicked Y-45 Defender. 02419_ Aluminum Leg destroyed. 02420_ Critical hit (Burn: +37). 02420_ Structural Scanner destroyed. 02423_ Critical hit (Burn: +37). 02425_ Supersonic Drone Bay destroyed. 02425_ Critical hit (Burn: +37). 02428_ Dropped Med. Storage Unit. 02461_ Acquired Scythe. 02463_ G-47 Trooper Particle Gun severed. 02466_ Critical hit (Burn: +37). 02468_ G-47 Trooper destroyed. 02471_ Acquired Aluminum Leg. Map ----- +----------------------------------------------------+ | ?## ???????????????############### # | | ?## ??????????????????#### ? #! + | | ?## ???????????????????????????? #[! # | | ?## ##?????????????????????????? #/ ###+### # | | ?## ##?????????????????????????? # ## ##??### | | ?## ##????? ######### # ##????????### | | ?## ##?????##/################/### ##??????????? | | ?## #####??## ##??????????? | | ?## #####??## ##??????????? | | ?## ##??## ##??????????? | | ### ###### #######+########## ##??????????? | | ### ###### ##### ####### ##??????????? | | ##?????] ##???## ##??????????? | | ##### ##???## ##??????????? | | """ ##### """ ##???## ##??????????? | | "Y" / """ ##???## ##??????????? | | ########/ ## """ ##????? ##??????????? | | ######## ##########????? ##??????????? | | ##???### ##?#######????? # ??????????? | | ##???######+##### ##????????????? # ??????????? | | ####?## #### ##?????###????? # ??????????? | | ####?## #### ######## ###??? # ??????????? | | ##### """ #### ##! ! / #????? # ??????????? | | ##### """ ####/## // #????o?????????????? | | + """ # # // ! #??????????????????? | | ##### #"" ! # @%[ #??????????????????? | | ############"" #"S g """ #??????????????????? | | +####? ##"T #""" """ #??????????????????? | | # ???????##"" !# ""Y """ #??????????????????? | | # ???????##""ggg# Y #??????????????????? | | [[ # ???????## xgg###+#######??????????????????? | | [[ # ???????#####b## #???????????????????????? | | # ???????# !!g Y* #???????????????????????? | | # ???????# #???????????????????????? | | ##### ???????+ ##### #???????????????????????? | | ##### ???????# ######+####??????????????????????? | | ??????????#### # ! #??????????????????????? | | ??????????# # #??????????????????????? | | ??????????# # """ """ #??????????????????????? | | ??????#######+### """ """ #??????????????????????? | | ??????# ! # """ """ #??????????????????????? | | ??????# # """ """ #??????????????????????? | | ??????# + """ """ #??????????????????????? | | ??????# # #??????????????????????? | | ??????#####################??????????????????????? | | | | | | | | | | | +----------------------------------------------------+ Best States ------------- Heat Dissipation 31 Energy Generation 10 Energy Capacity 125 Matter Stores 300 Matter Capacity 300 Sight Range 16 Terrain Scan Range 14 Terrain Scan Density 10 Utility Shielding 66 Evasion (%) 55 Recoil Reduction 1 Item Schematics ----------------- None Robot Schematics ------------------ None Fabricated ------------ Nothing Repaired ---------- Aluminum Leg | 33% | -8/Materials Studied --------- None Alien Tech Used ----------------- None Achievements -------------- Deductive Reasoning Follow The Leader Sixth Sense Challenges ------------ None Game ------ Seed IntegrityMeleeDetonator Manual? 0 Play Time 01:15:04 Cumulative 26.9 hours Start 2026.06.27 @ 17:33:16 End 2026.06.29 @ 22:55:59 Sessions 5 Manual Loads 0 Difficulty Rogue Special Mode None Game No. 15 Rogue 15 Adventurer 0 Explorer 0 Win Type - Total 0 Types 0/0/0/0/0/0/0/0/0/0 Lore% 11 Gallery% 23 Achievement% 14 Wizard Run 0 Options --------- Layout 1 ASCII 0 Keyboard 0 Movement Numpad Keybinds 0 Fullscreen 1 Font 24/Smallcaps Map View 50x35 Zoom Use 0% Tactical HUD 1 Map Filters NONE Filters NONE Steam 1 RUN: 4b26215f-78d9-420b-bf84-e7f78d4bae69